Workbook

Sheet MSOMSRN (hidden)

Sheet 工程量清单
A1: 东莞市水务集团供水有限公司2025年度办公用品及后勤物资需求清单
A2: 项目名称：东莞市水务集团供水有限公司2025年度办公用品及后勤物资采购项目 | B2: 物资重要程度 | D2: 物资类别 | E2: 品牌
A3: 序号 | B3: 重要货物 | C3: 名称 | D3: 规格型号 | E3: 数量 合计 | F3: 单位 | G3: 不含税预算综合单价（元） | H3: 不含税预算综合合价（元） | I3: 推荐品牌
A4: 一、办公用品（共226项）
A5: 1 | B5: ▲ | C5: 文件夹 | D5: A4；加厚PP材质，0.7mm厚；双强力夹 | E5: 561 | F5: 个 | G5: 3.95 | H5: =+G5*E5 -> 2215.95 | I5: 得力、晨光、齐心
A6: 2 | B6: ▲ | C6: 文件夹 | D6: A4；加厚PP材质，1.2mm厚；双强力夹 | E6: 764 | F6: 个 | G6: 5.60 | H6: =+G6*E6 -> 4278.40 | I6: 得力、晨光、齐心
A7: 3 | C7: 两孔文件夹 | D7: PP塑料，防水，A4，两孔 | E7: 109 | F7: 个 | G7: 6.74 | H7: 734.66 | I7: 得力、晨光、齐心
A8: 4 | C8: 11孔文件保护套 | D8: 加厚单个厚度0.12mm,A4 100个装/包 | E8: 8 | F8: 包 | G8: 10.04 | H8: 80.32 | I8: 得力、轩弘、酷办
A9: 5 | C9: 抽杆夹 | D9: A4、抽杆为PVC材质、透明PP材料，10mm，可夹60张A4纸 | E9: 763 | F9: 个 | G9: 0.84 | H9: 640.92 | I9: 得力、晨光、齐心
A10: 6 | C10: 抽杆夹 | D10: A4、抽杆为PVC材质、透明PP材料，15mm，可夹100张A4纸， | E10: 363 | F10: 个 | G10: 1.40 | H10: 508.20 | I10: 任意品牌
A11: 7 | C11: 抽杆报告夹 | D11: A4、抽杆为PVC材质、透明PP材料，25mm，可夹约200张A4纸，三角形抽杆 | E11: 52 | F11: 个 | G11: 1.40 | H11: 72.80 | I11: 得力、晨光、齐心
A12: 8 | B12: ▲ | C12: 中性按钮笔 | D12: 0.5mm；12支/盒，黑色或蓝色 | E12: 1376 | F12: 盒 | G12: 12.40 | H12: 17062.40 | I12: 得力、晨光、三菱
A13: 9 | B13: ▲ | C13: 中性按钮笔 | D13: 0.5mm；12支/盒，红色 | E13: 190 | F13: 盒 | G13: 12.32 | H13: 2340.80 | I13: 得力、晨光、百乐
A14: 10 | B14: ▲ | C14: 中性按钮笔 | D14: 0.38mm；12支/盒，黑色 | E14: 212 | F14: 盒 | G14: 22.40 | H14: 4748.80 | I14: 得力、晨光、斑马
A15: 11 | B15: ▲ | C15: 水性笔 | D15: 0.5mm，10支/盒，黑色 | E15: 341 | F15: 盒 | G15: 30.80 | H15: 10502.80 | I15: 三菱、百乐、晨光
A16: 12 | B16: ▲ | C16: 签字笔 | D16: 0.5mm；12支/盒，黑色 | E16: 634 | F16: 盒 | G16: 12.32 | H16: 7810.88 | I16: 得力、晨光、齐心
A17: 13 | B17: ▲ | C17: 荧光笔 | D17: 5色，扁笔头4-5mm | E17: 160 | F17: 盒 | G17: 13.81 | H17: 2209.60 | I17: 三菱、得力、斑马
A18: 14 | B18: ▲ | C18: 铅笔 | D18: 2B；12支/盒 | E18: 181 | F18: 盒 | G18: 5.56 | H18: 1006.36 | I18: 中华、得力、晨光
A19: 15 | B19: ▲ | C19: 白板笔 | D19: 10支/盒，黑色/红色/蓝色 | E19: 101 | F19: 盒 | G19: 8.48 | H19: 856.48 | I19: 得力、晨光、齐心
A20: 16 | B20: ▲ | C20: 电池 | D20: 5号；24粒一盒 | E20: 676 | F20: 盒 | G20: 33.38 | H20: 22564.88 | I20: 金霸王、南孚、品胜
A21: 17 | B21: ▲ | C21: 电池 | D21: 7号；25粒一盒 | E21: 424 | F21: 盒 | G21: 33.49 | H21: 14199.76 | I21: 金霸王、南孚、品胜
A22: 18 | C22: 电池 | D22: 9V | E22: 158 | F22: 粒 | G22: 11.16 | H22: 1763.28 | I22: 金霸王、南孚、品胜
A23: 19 | B23: ▲ | C23: 移动硬盘 | D23: 2TB、USB3.0 | E23: 82 | F23: 个 | G23: 281.88 | H23: 23114.16 | I23: 希捷、东芝、西部数据
A24: 20 | B24: ▲ | C24: U盘 | D24: 64GB，USB3.0 | E24: 222 | F24: 个 | G24: 39.20 | H24: 8702.40 | I24: 金士顿、闪迪、东芝
A25: 21 | B25: ▲ | C25: 不锈钢长尾夹 | D25: 32MM（3#）*12，不锈钢原色 | E25: 52 | F25: 盒 | G25: 6.70 | H25: 348.40 | I25: 齐心、广博、得力、晨光
A26: 22 | B26: ▲ | C26: 不锈钢长尾夹 | D26: 25MM（4#）*24，不锈钢原色 | E26: 64 | F26: 盒 | G26: 6.72 | H26: 430.08 | I26: 齐心、广博、得力、晨光
A27: 23 | B27: ▲ | C27: 不锈钢长尾夹 | D27: 19MM（5#）*40，不锈钢原色 | E27: 52 | F27: 盒 | G27: 5.56 | H27: 289.12 | I27: 齐心、广博、得力、晨光
A28: 24 | B28: ▲ | C28: 长尾夹 | D28: 15mm；60只/筒；彩色烤漆；防腐防锈；优质金属 | E28: 889 | F28: 筒 | G28: 5.67 | H28: 5040.63 | I28: 得力、晨光、金得利
A29: 25 | B29: ▲ | C29: 长尾夹 | D29: 19mm；40只/筒；彩色烤漆；防腐防锈；优质金属 | E29: 720 | F29: 筒 | G29: 5.54 | H29: 3988.80 | I29: 得力、晨光、金得利
A30: 26 | B30: ▲ | C30: 长尾夹 | D30: 25mm；48只/筒；彩色烤漆；防腐防锈；优质金属 | E30: 582 | F30: 筒 | G30: 8.40 | H30: 4888.80 | I30: 得力、晨光、金得利
A31: 27 | B31: ▲ | C31: 长尾夹 | D31: 32mm；24只/筒；彩色烤漆；防腐防锈；优质金属 | E31: 520 | F31: 筒 | G31: 8.37 | H31: 4352.40 | I31: 得力、晨光、金得利
A32: 28 | B32: ▲ | C32: 长尾夹 | D32: 41mm；24个/盒；彩色烤漆；防腐防锈；优质金属 | E32: 319 | F32: 筒 | G32: 11.01 | H32: 3512.19 | I32: 得力、晨光、金得利
A33: 29 | B33: ▲ | C33: 长尾夹 | D33: 51mm；12只/筒；彩色烤漆；防腐防锈；优质金属 | E33: 402 | F33: 筒 | G33: 8.35 | H33: 3356.70 | I33: 得力、晨光、金得利
A34: 30 | B34: ▲ | C34: 回形针 | D34: 彩色；29mm；160个/盒 | E34: 346 | F34: 盒 | G34: 2.78 | H34: 961.88 | I34: 得力、晨光、齐心、广博
A35: 31 | B35: ▲ | C35: 回形针 | D35: 普通；29mm；100个/盒；镀镍防锈 | E35: 1534 | F35: 盒 | G35: 1.12 | H35: 1718.08 | I35: 得力、晨光、齐心、广博
A36: 32 | B36: ▲ | C36: 计算器 | D36: 12位，电脑按键、双电源驱动 | E36: 210 | F36: 台 | G36: 19.73 | H36: 4143.30 | I36: 得力、晨光、齐心
A37: 33 | B37: ▲ | C37: 科学计算器 | D37: 函数计算器 | E37: 41 | F37: 台 | G37: 39.07 | H37: 1601.87 | I37: 卡西欧、晨光、得力
A38: 34 | C38: 介刀 | D38: 0.4*9.0*80mm | E38: 116 | F38: 把 | G38: 2.24 | H38: 259.84 | I38: 宝工、威力狮、得力
A39: 35 | C39: 美工刀 | D39: 33225，大号，塑料 | E39: 226 | F39: 把 | G39: 5.60 | H39: 1265.60 | I39: 得力、晨光、齐心
A40: 36 | C40: 剪刀 | D40: 160mm | E40: 369 | F40: 把 | G40: 2.79 | H40: 1029.51 | I40: 得力、晨光、齐心
A41: 37 | C41: 不锈钢剪刀 | D41: 17.5CM*9CM | E41: 81 | F41: 把 | G41: 4.45 | H41: 360.45 | I41: 得力、齐心、广博
A42: 38 | B42: ▲ | C42: 皮笔记本 | D42: A5；100页；耐磨PU皮面，内页为70g米黄色道林纸 | E42: 361 | F42: 本 | G42: 13.95 | H42: 5035.95 | I42: 得力、齐心、广博
A43: 39 | C43: 笔记本 | D43: 297*210mm；100页 | E43: 457 | F43: 本 | G43: 4.48 | H43: 2047.36 | I43: 得力、齐心、广博
A44: 40 | C44: 笔记本 | D44: A5；60页 | E44: 388 | F44: 本 | G44: 1.68 | H44: 651.84 | I44: 得力、齐心、广博
A45: 41 | C45: 直尺 | D45: 30cm；塑料 | E45: 256 | F45: 把 | G45: 1.22 | H45: 312.32 | I45: 得力、晨光、齐心
A46: 42 | C46: 钢尺 | D46: 30cm | E46: 101 | F46: 把 | G46: 4.50 | H46: 454.50 | I46: 得力、晨光、齐心
A47: 43 | C47: 防水格子袋 | D47: A4 | E47: 2441 | F47: 个 | G47: 1.12 | H47: 2733.92 | I47: 得力、晨光、齐心、广博
A48: 44 | C48: 网格拉链袋 | D48: A4 | E48: 2661 | F48: 个 | G48: 2.21 | H48: 5880.81 | I48: 得力、晨光、齐心、广博
A49: 45 | C49: 网格拉链袋 | D49: A3 | E49: 345 | F49: 个 | G49: 3.33 | H49: 1148.85 | I49: 得力、晨光、齐心、广博
A50: 46 | C50: 订书机 | D50: 小型 | E50: 162 | F50: 个 | G50: 4.48 | H50: 725.76 | I50: 得力、晨光、齐心、广博
A51: 47 | B51: ▲ | C51: 订书机 | D51: 标准309 | E51: 267 | F51: 个 | G51: 6.70 | H51: 1788.90 | I51: 得力、晨光、齐心、广博
A52: 48 | B52: ▲ | C52: 订书机 | D52: 厚层，重型；可订210页 | E52: 48 | F52: 个 | G52: 67.42 | H52: 3236.16 | I52: 得力、晨光、齐心、广博
A53: 49 | B53: ▲ | C53: 装订机 | D53: 带线装订，打孔厚度80mm | E53: 13 | F53: 部 | G53: 193.38 | H53: 2513.94 | I53: 云广、得力、晨光
A54: 50 | C54: 订书针 | D54: G2127 | E54: 356 | F54: 盒 | G54: 0.56 | H54: 199.36 | I54: 得力、晨光、齐心
A55: 51 | C55: 大订书针 | D55: 标准 | E55: 248 | F55: 盒 | G55: 1.12 | H55: 277.76 | I55: 得力、晨光、齐心
A56: 52 | C56: 大订书针 | D56: 厚层1000pcs | E56: 45 | F56: 盒 | G56: 3.39 | H56: 152.55 | I56: 得力、晨光、齐心
A57: 53 | C57: 不锈钢订书钉小号 | D57: 10#1000枚/盒，304不锈钢 | E57: 833 | F57: 盒 | G57: 2.80 | H57: 2332.40 | I57: 乐春天、兰台、盛泰
A58: 54 | B58: ▲ | C58: 不锈钢订书钉 | D58: 12# （24/6），304不锈钢 | E58: 765 | F58: 盒 | G58: 4.45 | H58: 3404.25 | I58: 乐春天、兰台、盛泰
A59: 55 | B59: ▲ | C59: 不锈钢订书钉 | D59: （26/8）1000枚/盒，304不锈钢 | E59: 78 | F59: 盒 | G59: 5.66 | H59: 441.48 | I59: 乐春天、兰台、盛泰
A60: 56 | B60: ▲ | C60: 不锈钢订书钉 | D60: （23/13）1000枚/盒，304不锈钢 | E60: 117 | F60: 盒 | G60: 6.72 | H60: 786.24 | I60: 乐春天、兰台、盛泰
A61: 57 | B61: ▲ | C61: 不锈钢订书钉 | D61: （23/17）1000枚/盒，304不锈钢 | E61: 65 | F61: 盒 | G61: 6.72 | H61: 436.80 | I61: 乐春天、兰台、盛泰
A62: 58 | C62: 取订器 | E62: 233 | F62: 个 | G62: 2.23 | H62: 519.59 | I62: 得力、晨光、齐心
A63: 59 | C63: 打孔机 | D63: 20页 | E63: 12 | F63: 个 | G63: 14.09 | H63: 169.08 | I63: 得力、晨光、三木
A64: 60 | C64: 透明胶带 | D64: 60mm*100y | E64: 564 | F64: 卷 | G64: 5.58 | H64: 3147.12 | I64: 得力、晨光、可得优
A65: 61 | C65: 透明胶带 | D65: 18mm*30y | E65: 763 | F65: 卷 | G65: 0.84 | H65: 640.92 | I65: 得力、晨光、可得优
A66: 62 | C66: 透明胶带 | D66: 45mm*60y | E66: 368 | F66: 卷 | G66: 3.33 | H66: 1225.44 | I66: 得力、晨光、可得优
A67: 63 | C67: 便利贴 | D67: 76*51mm；100张/包；单色 | E67: 680 | F67: 包 | G67: 1.40 | H67: 952.00 | I67: 得力、晨光、齐心、广博
A68: 64 | C68: 便利贴 | D68: 76mm*76mm；100张/包；单色 | E68: 1210 | F68: 包 | G68: 1.70 | H68: 2057.00 | I68: 得力、晨光、齐心、广博
A69: 65 | C69: 便利标签 | D69: 76*19mm；四色荧光色；4pcs*100张 | E69: 748 | F69: 包 | G69: 1.68 | H69: 1256.64 | I69: 得力、晨光、齐心、广博
A70: 66 | C70: 索引标签指示贴 | D70: 透明防水，3色N次贴荧光膜小号28*12mm300枚或中号28*25mm180枚或大号28*45mm100枚 | E70: 104 | F70: 包 | G70: 6.63 | H70: =+G70*E70 -> 689.52 | I70: 得力、晨光、齐心、白利金人
A71: 67 | C71: 告示贴 | D71: (英发15*50MM) | E71: 30 | F71: 包 | G71: 1.94 | H71: 58.20 | I71: 得力、晨光、齐心
A72: 68 | C72: 不干胶标签纸 | D72: 23*49mm；60枚/包；红色 | E72: 56 | F72: 包 | G72: 1.41 | H72: 78.96 | I72: 得力、晨光、广博
A73: 69 | C73: 不干胶标签纸 | D73: 23*33mm；80枚/包；蓝色 | E73: 34 | F73: 包 | G73: 1.40 | H73: 47.60 | I73: 得力、晨光、广博
A74: 70 | C74: 不干胶标签纸 | D74: 25*30mm；90枚/包；红色/蓝色 | E74: 53 | F74: 包 | G74: 1.42 | H74: 75.26 | I74: 得力、晨光、广博
A75: 71 | C75: 不干胶标签纸 | D75: 18*32mm；120枚/包；红色/蓝色 | E75: 59 | F75: 包 | G75: 1.41 | H75: 83.19 | I75: 得力、晨光、广博
A76: 72 | C76: 不干胶标签纸 | D76: 25*38MM、白色、488贴/包 | E76: 83 | F76: 包 | G76: 1.67 | H76: 138.61 | I76: 得力、晨光、广博
A77: 73 | C77: 不干胶标签纸 | D77: 19*50MM、白色、450贴/包 | E77: 82 | F77: 包 | G77: 1.68 | H77: 137.76 | I77: 得力、晨光、广博
A78: 74 | C78: 热敏标签打印纸 | D78: 70mm*40mm，1000张（横版） | E78: 47 | F78: 卷 | G78: 8.43 | H78: 396.21 | I78: 得力、诺码、昕维
A79: 75 | C79: 热敏标签打印纸 | D79: 40mm*30mm，800张（横版） | E79: 21 | F79: 卷 | G79: 5.58 | H79: 117.18 | I79: 得力、诺码、昕维
A80: 76 | C80: 双头油性记号笔 | D80: 细头：0.5mm；粗头1.0mm，12支/盒，黑色 | E80: 238 | F80: 盒 | G80: 13.90 | H80: 3308.20 | I80: 得力、晨光、斑马
A81: 77 | C81: 油性记号笔 | D81: 红色；10支装 | E81: 114 | F81: 盒 | G81: 11.20 | H81: 1276.80 | I81: 得力、晨光、斑马
A82: 78 | C82: 油性大头笔 | D82: 黑色；10支装 | E82: 234 | F82: 盒 | G82: 11.13 | H82: 2604.42 | I82: 得力、晨光、斑马
A83: 79 | C83: 油性大头笔 | D83: 蓝色；10支装 | E83: 79 | F83: 盒 | G83: 11.16 | H83: 881.64 | I83: 得力、晨光、斑马
A84: 80 | C84: 油性大头笔 | D84: 红色；10支装 | E84: 108 | F84: 盒 | G84: 11.24 | H84: 1213.92 | I84: 得力、晨光、斑马
A85: 81 | C85: 7号信封 | D85: 229*162mm，120g黄牛皮纸 | E85: 500 | F85: 个 | G85: 0.28 | H85: 140.00 | I85: 得力、晨光、广博
A86: 82 | C86: 9号信封 | D86: 324×229mm（A4）、120g黄牛皮纸 | E86: 777 | F86: 个 | G86: 0.28 | H86: 217.56 | I86: 得力、晨光、广博
A87: 83 | C87: 档案盒 | D87: A4 310*220*50mm，牛皮纸 | E87: 1060 | F87: 个 | G87: 1.40 | H87: 1484.00 | I87: 得力、晨光、齐心、广博
A88: 84 | B88: ▲ | C88: 档案盒 | D88: A4；35mm；PVC材质；蓝色/黑色；硬纸板 | E88: 578 | F88: 个 | G88: 8.40 | H88: 4855.20 | I88: 得力、晨光、齐心、广博
A89: 85 | B89: ▲ | C89: 档案盒 | D89: A4；55mm；PVC材质带夹压纸文件夹子，蓝色/黑色；硬纸板 | E89: 505 | F89: 个 | G89: 10.11 | H89: 5105.55 | I89: 得力、晨光、齐心、广博
A90: 86 | B90: ▲ | C90: 档案盒 | D90: A4；75mm；PVC材质带夹压纸文件夹子，蓝色/黑色；硬纸板 | E90: 252 | F90: 个 | G90: 12.23 | H90: 3081.96 | I90: 得力、晨光、齐心、广博
A91: 87 | B91: ▲ | C91: 档案盒 | D91: 尺寸：33.5*45*5.5CM，材质：PVC热封纸板+磁扣+钢夹，蓝色，加厚 | E91: 221 | F91: 个 | G91: 14.09 | H91: 3113.89 | I91: 得力、晨光、今日、富得快
A92: 88 | B92: ▲ | C92: 档案盒 | D92: 皮质档案盒 A4加厚档案盒 文件盒 资料盒 磁扣 包胶 皮面 带压纸夹文件夹 HY1331A 蓝色【3英寸 背宽65mm】32.5mm*65mm*240mm,约夹400张A4纸 | E92: 404 | F92: 个 | G92: 14.05 | H92: 5676.20 | I92: 得力、晨光、今日、富得快
A93: 89 | B93: ▲ | C93: 用友A4凭证装订封面（横版） | D93: 规格：298*212*30，西玛DX01036,250张/箱 | E93: 83 | F93: 箱 | G93: 116.43 | H93: 9663.69 | I93: 西玛，金碟，添美
A94: 90 | C94: 橡皮擦 | D94: 2B；32*22*13mm | E94: 546 | F94: 块 | G94: 0.56 | H94: 305.76 | I94: 得力、真彩、猫太子
A95: 91 | B95: ▲ | C95: 削笔器 | D95: 可调粗细手摇，自动削笔机 | E95: 126 | F95: 个 | G95: 16.85 | H95: 2123.10 | I95: 得力、晨光、齐心、广博
A96: 92 | C96: 双面胶 | D96: 24mm，长度为10Y或以上 | E96: 734 | F96: 卷 | G96: 1.68 | H96: 1233.12 | I96: 得力、3M、房屋医生
A97: 93 | B97: ▲ | C97: 国旗 | D97: 190*128cm，3号 | E97: 43 | F97: 面 | G97: 19.66 | H97: 845.38 | I97: 得力、晨光、三益档案
A98: 94 | C98: 红旗 | D98: 144*96cm，4号 | E98: 5 | F98: 面 | G98: 13.95 | H98: 69.75 | I98: 得力、晨光、三益档案
A99: 95 | C99: 修正液/涂改液 | D99: 12-18ml；安全无毒，通过GB21027学生安全通用要求；快干 | E99: 1054 | F99: 支 | G99: 2.23 | H99: 2350.42 | I99: 得力、真彩、乐普升
A100: 96 | C100: 圆形笔筒 | D100: 金属网格、防滑脚垫，直径91mm*高度98mm | E100: 178 | F100: 个 | G100: 3.36 | H100: 598.08 | I100: 得力、晨光、齐心
A101: 97 | B101: ▲ | C101: 多功能办公笔筒 | D101: 金属网格、防滑脚垫 | E101: 42 | F101: 个 | G101: 16.58 | H101: 696.36 | I101: 得力、晨光、齐心
A102: 98 | C102: 桌面整理塑胶文件柜 | D102: 265*344*245 四层（无锁） | E102: 6 | F102: 个 | G102: 45.25 | H102: 271.50 | I102: 得力、齐心、晨光
A103: 99 | C103: 透明书写板 | D103: 315*225mm，适用于夹A4纸 | E103: 569 | F103: 块 | G103: 5.53 | H103: 3146.57 | I103: 得力、齐心、晨光
A104: 100 | B104: ▲ | C104: 文件架 | D104: 四联；加厚；PP材质；323*265*310mm（蓝色） | E104: 132 | F104: 个 | G104: 13.95 | H104: 1841.40 | I104: 得力、齐心、晨光
A105: 101 | B105: ▲ | C105: 三格文件架 | D105: 三联；加厚，隔板单片厚度达2.4mm；PP材质；314*258*262mm（蓝色） | E105: 66 | F105: 个 | G105: 11.20 | H105: 739.20 | I105: 得力、齐心、晨光
A106: 102 | B106: ▲ | C106: 三格文件座 | D106: 三格；PS材质；加厚加厚，隔板单片厚度达2.4mm；245*330*260mm | E106: 49 | F106: 个 | G106: 13.90 | H106: 681.10 | I106: 得力、齐心、晨光
A107: 103 | C107: 消防检查卡 | D107: 130*95mm，含卡套、扎带 | E107: 361 | F107: 张 | G107: 2.26 | H107: 815.86 | I107: 斯图、稳斯坦、魅祥
A108: 104 | C108: 白板擦 | D108: 50*125*25mm | E108: 54 | F108: 个 | G108: 2.78 | H108: 150.12 | I108: 得力、齐心、晨光
A109: 105 | C109: 密封袋 | D109: 加厚密封，食品级PE材质，40只装；尺寸 （17cmx24cm）， | E109: 33 | F109: 盒 | G109: 8.35 | H109: 275.55 | I109: 柯瑞尔、妙洁、登比
A110: 106 | B110: ▲ | C110: 透明液体胶水 | D110: 50ml，无甲醛，粘性强，12支/盒 | E110: 102 | F110: 盒 | G110: 13.95 | H110: 1415.93 | I110: 得力、晨光、齐心
A111: 107 | C111: 固体胶 | D111: 30g及以上；12支/盒；不含甲醛；PVP固体胶 | E111: 273 | F111: 盒 | G111: 16.74 | H111: 4570.02 | I111: 汉高、得力、晨光
A112: 108 | B112: ▲ | C112: 印台 | D112: 红色；φ80mm；油性防水；快干油墨 | E112: 255 | F112: 个 | G112: 7.00 | H112: 1785.00 | I112: 利佰代、得力、晨光
A113: 109 | B113: ▲ | C113: 大印台 | D113: 138*88MM，红色；油性防水；快干油墨 | E113: 41 | F113: 个 | G113: 11.12 | H113: 455.92 | I113: 利佰代、得力、晨光
A114: 110 | B114: ▲ | C114: 印油 | D114: 红色；40ml采用快干油性染料系印油，印迹快干清晰，防水性、耐光性及抗褪色性俱佳。 | E114: 194 | F114: 支 | G114: 5.60 | H114: 1086.40 | I114: 利佰代、得力、晨光
A115: 111 | C115: 明色朱液 | D115: 30g | E115: 71 | F115: 支 | G115: 7.25 | H115: 514.75 | I115: 利百代、得力、西玛
A116: 112 | C116: 光敏印油 | D116: 9879 ，号码机油墨 | E116: 19 | F116: 瓶 | G116: 3.39 | H116: 64.41 | I116: 任意品牌
A117: 113 | B117: ▲ | C117: 电话机 | D117: 来电显示 | E117: 158 | F117: 台 | G117: 36.15 | H117: 5711.70 | I117: TCL、飞利浦、摩托罗拉
A118: 114 | C118: 报书刊架 | D118: 635*360*1250mm | E118: 3 | F118: 个 | G118: 111.62 | H118: 334.86 | I118: 得力、晨光、齐心
A119: 115 | C119: 报纸架 | D119: 635*270*820mm | E119: 1 | F119: 个 | G119: 83.43 | H119: 83.43 | I119: 得力、晨光、齐心
A120: 116 | C120: 隔音耳塞 | D120: 入耳式，2个独立包装，10个/包 | E120: 6 | F120: 包 | G120: 14.05 | H120: 84.30 | I120: 3M、得力、晨光、
A121: 117 | C121: 电工胶布 | D121: 16mm*9.5m/卷，红色，绝缘 | E121: 323 | F121: 卷 | G121: 1.67 | H121: 539.41 | I121: 得力、晨光、齐心
A122: 118 | C122: 海绵胶 | D122: 24mm*5y*2.5mm*4.5米/卷 | E122: 208 | F122: 卷 | G122: 1.69 | H122: 351.52 | I122: 得力、晨光、齐心
A123: 119 | C123: 仓库磁性标签材料卡 | D123: 五轮，磁吸，8.8*12.5cm；长方形 | E123: 30 | F123: 块 | G123: 2.21 | H123: 66.30 | I123: 斯图、稳斯坦、魅祥
A124: 120 | C124: 仓库磁性标签材料卡 | D124: 强磁，三轮75mm*55mm | E124: 130 | F124: 个 | G124: 1.38 | H124: 179.40 | I124: 斯图、稳斯坦、魅祥
A125: 121 | B125: ▲ | C125: 插座 | D125: 6插位；总控开关；儿童保护门；3米，带USB插口 | E125: 109 | F125: 个 | G125: 47.44 | H125: 5170.96 | I125: 公牛、飞利浦、小米、得力
A126: 122 | B126: ▲ | C126: 插座 | D126: 3-6位，总控开关，全长5米 | E126: 182 | F126: 个 | G126: 39.20 | H126: 7134.40 | I126: 公牛、飞利浦、小米、得力
A127: 123 | B127: ▲ | C127: 插座 | D127: 3-10位，总控开关，全长10米 | E127: 145 | F127: 个 | G127: 83.44 | H127: 12098.80 | I127: 公牛、飞利浦、小米、得力
A128: 124 | C128: 意见箱 | D128: 220*120*290mm，铝合金材质 | E128: 9 | F128: 个 | G128: 38.94 | H128: 350.46 | I128: 得力、晨光、齐心
A129: 125 | C129: 钥匙圈 | D129: 不锈钢直径30mm | E129: 200 | F129: 个 | G129: 0.57 | H129: 114.00 | I129: 得力、晨光、齐心
A130: 126 | C130: 钥匙盘 | D130: 不锈钢，30位加厚牌粗圈 | E130: 28 | F130: 个 | G130: 16.80 | H130: 470.40 | I130: 得力、晨光、齐心
A131: 127 | C131: 钥匙箱 | D131: 72位；400mm*55*475 | E131: 6 | F131: 个 | G131: 139.53 | H131: 837.18 | I131: 得力、晨光、国为
A132: 128 | B132: ▲ | C132: 烧水壶 | D132: 1.7L；内胆为304食品接触用不锈钢；双层防烫壶体；防干烧保护 | E132: 217 | F132: 个 | G132: 72.08 | H132: 15641.36 | I132: 美的、苏泊尔、九阳
A133: 129 | C133: 入库单 | D133: 三联 | E133: 65 | F133: 本 | G133: 1.68 | H133: 109.20 | I133: 浩立信、得力、晨光
A134: 130 | C134: 出库单 | D134: 三联 | E134: 65 | F134: 本 | G134: 1.66 | H134: =+G134*E134 -> 107.90 | I134: 浩立信、得力、晨光
A135: 131 | C135: 领料单 | D135: 三联 | E135: 855 | F135: 本 | G135: 1.66 | H135: 1419.30 | I135: 浩立信、得力、晨光
A136: 132 | C136: 出入库单 | D136: 176mm*128mm 三联 | E136: 35 | F136: 本 | G136: 2.81 | H136: 98.35 | I136: 浩立信、得力、晨光
A137: 133 | C137: 收据 | D137: 三联 | E137: 38 | F137: 本 | G137: 2.78 | H137: 105.64 | I137: 成文厚、主力、皓博
A138: 134 | C138: 货架 | D138: 200*40*200cm/4层，防锈，每层承重至少200kg，0.38mm厚钢板 | E138: 47 | F138: 个 | G138: 332.61 | H138: 15632.67 | I138: 青松、艾维曼、信京
A139: 135 | B139: ▲ | C139: 复印纸 | D139: A4； 80g/m2；108um厚；96.4%不透明度；零尘埃度；500张/包；5包/箱；全木浆；纸张多用于存档，不建议使用再生纸和含酸性的纸 | E139: 1359 | F139: 箱 | G139: 83.71 | H139: 113761.89 | I139: 亚太森博（拷贝可乐）、UPM佳印（绿佳印）、新橙天章
A140: 136 | B140: ▲ | C140: 复印纸 | D140: A4； 85g/m2；108um厚；96.4%不透明度；零尘埃度；500张/包；5包/箱；全木浆；纸张多用于存档，不建议使用再生纸和含酸性的纸 | E140: 785 | F140: 箱 | G140: 101.14 | H140: 79394.90 | I140: double A、UPM佳印（红卓越佳印）、亚太森博（红百旺）
A141: 137 | B141: ▲ | C141: 复印纸 | D141: A3； 80g/m2；108um厚；96.4%不透明度；零尘埃度；500张/包；5包/箱；全木浆；纸张多用于存档，不建议使用再生纸和含酸性的纸 | E141: 132 | F141: 箱 | G141: 155.20 | H141: 20486.40 | I141: 亚太森博（拷贝可乐）、UPM佳印（绿佳印）、新橙天章
A142: 138 | B142: ▲ | C142: 复印纸 | D142: A3； 85g/m2；108um厚；96.4%不透明度；零尘埃度；500张/包；5包/箱；全木浆；纸张多用于存档，不建议使用再生纸和含酸性的纸 | E142: 36 | F142: 箱 | G142: 195.98 | H142: 7055.28 | I142: double A、UPM佳印（红卓越佳印）、亚太森博（红百旺）
A143: 139 | C143: 复印纸 | D143: A4；粉色；500张/包，每箱5包 | E143: 59 | F143: 箱 | G143: 116.42 | H143: 6868.78 | I143: 得力、晨光、天章
A144: 140 | C144: 复印纸 | D144: A3；粉色；500张/包，每箱5包 | E144: 11 | F144: 箱 | G144: 222.45 | H144: 2446.95 | I144: 得力、晨光、天章
A145: 141 | B145: ▲ | C145: 碳粉 | D145: 匹配laser Jet 700MFP M725dn | E145: 13 | F145: 个 | G145: 111.62 | H145: 1451.06 | I145: 灵印、格之格、天威
A146: 142 | B146: ▲ | C146: 硒鼓 | D146: HP88A晒鼓；大容量；A4理论打印量为2000张以上 | E146: 1 | F146: 个 | G146: 112.37 | H146: 112.37 | I146: 灵印、格之格、天威
A147: 143 | B147: ▲ | C147: 墨盒 | D147: 适配HP Officejet 7110型，黑彩墨盒套装，大容量，带芯片；A4理论印数1000张以上 | E147: 3 | F147: 套 | G147: 166.88 | H147: 500.64 | I147: 灵印、格之格、天威
A148: 144 | B148: ▲ | C148: 硒鼓 | D148: 适用于HP M203DW打印机 可大约打印3500张 | E148: 5 | F148: 个 | G148: 140.47 | H148: 702.35 | I148: 绘威、格之格、天威
A149: 145 | B149: ▲ | C149: 硒鼓 | D149: 惠普，适用M252DW 四色套装 | E149: 15 | F149: 套 | G149: 225.50 | H149: 3382.50 | I149: 绘威、格之格、天威
A150: 146 | B150: ▲ | C150: 硒鼓 | D150: 惠普/HP硒鼓88A硒鼓cc388a，适配HP laserJet P1108 | E150: 117 | F150: 个 | G150: 89.61 | H150: 10484.37 | I150: 绘威、格之格、天威
A151: 147 | B151: ▲ | C151: 自动4位归零数字打码机 | D151: 连续打印、印字清晰、自动上墨 | E151: 12 | F151: 个 | G151: 45.10 | H151: 541.20 | I151: 新元昌、得力、可得优
A152: 148 | B152: ▲ | C152: 自动3位归零数字打码机 | D152: 连续打印、印字清晰、自动上墨 | E152: 9 | F152: 个 | G152: 44.95 | H152: 404.55 | I152: 新元昌、得力、可得优
A153: 149 | B153: ▲ | C153: 路由器 | D153: 无线双频：2.4GHz 和 5GHz，四线3000M | E153: 40 | F153: 台 | G153: 168.56 | H153: 6742.40 | I153: 华为、水星、TP-link，小米
A154: 150 | C154: 小白板 | D154: 100*70cm | E154: 4 | F154: 块 | G154: 66.75 | H154: 267.00 | I154: 臻格、得力、晨光
A155: 151 | B155: ▲ | C155: 过塑膜 | D155: A4，100张/盒 | E155: 60 | F155: 盒 | G155: 28.00 | H155: 1680.00 | I155: 得力、齐心、雷盛
A156: 152 | B156: ▲ | C156: 过塑膜 | D156: A3，100张/盒 | E156: 16 | F156: 盒 | G156: 56.00 | H156: 896.00 | I156: 得力、齐心、雷盛
A157: 153 | B157: ▲ | C157: 网线 | D157: 六类千兆网线工程版 0.57mm纯铜线芯 CAT6类8芯双绞箱线 家装宽带布线 非屏蔽 | E157: 430 | F157: 米 | G157: 2.78 | H157: 1195.40 | I157: 绿联、安普康、飞利浦
A158: 154 | C158: 水晶头 | D158: 六类网线水晶头 6类千兆网络接头 Cat6水晶头镀金 | E158: 577 | F158: 个 | G158: 0.56 | H158: 323.12 | I158: 绿联、安普康、飞利浦
A159: 155 | B159: ▲ | C159: 网线 | D159: 6类，3米；纯铜线芯 千兆高速，八芯双绞 | E159: 43 | F159: 条 | G159: 11.51 | H159: 494.93 | I159: 绿联、安普康、飞利浦
A160: 156 | B160: ▲ | C160: 网线 | D160: 6类，5米；纯铜线芯 千兆高速，八芯双绞 | E160: 38 | F160: 条 | G160: 13.95 | H160: 530.10 | I160: 绿联、飞利浦、山泽、安润达
A161: 157 | C161: 网线 | D161: 百兆，10m | E161: 5 | F161: 条 | G161: 13.95 | H161: 69.75 | I161: 绿联、飞利浦、山泽、安润达
A162: 158 | C162: VGA高清传输线 | D162: 1080P | E162: 6 | F162: 米 | G162: 8.37 | H162: 50.22 | I162: 达而稳、晶华、优联
A163: 159 | B163: ▲ | C163: 无线鼠标 | D163: 静音，无线，外接USB | E163: 179 | F163: 个 | G163: 33.72 | H163: 6035.88 | I163: 罗技、小米、雷柏
A164: 160 | B164: ▲ | C164: 有线鼠标 | D164: 电脑通用 | E164: 172 | F164: 个 | G164: 13.96 | H164: 2401.12 | I164: 联想、华硕、戴尔
A165: 161 | C165: 充电宝 | D165: 10000mAh手机充电宝 | E165: 60 | F165: 个 | G165: 56.19 | H165: 3371.40 | I165: 小米、华为、品胜
A166: 162 | C166: 色带 | D166: S015290/S010076黑色 | E166: 5 | F166: 个 | G166: 13.96 | H166: 69.80 | I166: 绘威、格之格、天威
A167: 163 | C167: 手推车 | D167: 承重400斤、静音、加厚支架 | E167: 30 | F167: 台 | G167: 140.47 | H167: 4214.10 | I167: 华宝、南狮、信京
A168: 164 | C168: 挂钟 | D168: 圆形、11英寸 | E168: 35 | F168: 个 | G168: 39.20 | H168: 1372.00 | I168: 北极星、恒时、精科
A169: 165 | C169: 按钮圆珠笔 | D169: BP-8109 BALLPOINT、0.5黑色/蓝色、12支/盒 | E169: 134 | F169: 盒 | G169: 13.77 | H169: 1845.18 | I169: 得力、晨光、齐心
A170: 166 | C170: 激光笔 | D170: 黑色、100米远控 | E170: 40 | F170: 支 | G170: 36.27 | H170: 1450.80 | I170: 诺为、得力、罗技
A171: 167 | C171: 桶装水电动抽水器 | D171: 充电款 | E171: 73 | F171: 个 | G171: 30.60 | H171: 2233.80 | I171: 子路、小米、拜杰
A172: 168 | B172: ▲ | C172: DVD刻录机 | D172: LG，GP65,超薄外置轻便式 | E172: 1 | F172: 个 | G172: 122.79 | H172: 122.79 | I172: 绿联、联想、绿巨能
A173: 169 | C173: 高速读卡器 | D173: usb3.0二合一多功能，适用手机单反相机 | E173: 14 | F173: 个 | G173: 30.39 | H173: 425.46 | I173: 绿联、品胜、绿巨能
A174: 170 | C174: 电脑包 | D174: 通用手提电脑包 | E174: 6 | F174: 个 | G174: 55.61 | H174: 333.66 | I174: 戴尔、联想、华为
A175: 171 | C175: 会议牌 | D175: 加厚三角会议牌、内部尺寸180*100mmV型亚克力桌牌 | E175: 151 | F175: 个 | G175: 5.53 | H175: 835.03 | I175: 宝克、和日升、国俊众博
A176: 172 | B176: ▲ | C176: USB扩展器 | E176: 20 | F176: 个 | G176: 30.69 | H176: 613.80 | I176: 绿联、联想、优越者
A177: 173 | C177: 标签纸 | D177: BC-01 | E177: 4 | F177: 包 | G177: 27.72 | H177: 110.88 | I177: 合隆、齐心、广博
A178: 174 | C178: 燃气灶电池 | D178: 碳性大号1号电池 | E178: 12 | F178: 对 | G178: 7.28 | H178: 87.36 | I178: 南孚、金霸王、公牛
A179: 175 | C179: 封面牛皮纸 | D179: 150克及以上/张，A4，100张/包 | E179: 11 | F179: 包 | G179: 8.43 | H179: 92.73 | I179: 得力、齐心、广博
A180: 176 | C180: 文件汇编 | D180: 浅肤色，2.5CM | E180: 7 | F180: 个 | G180: 14.00 | H180: 98.00 | I180: 盛泰、得力、齐心
A181: 177 | C181: 钥匙牌（吊牌） | D181: 彩色50个/盒 | E181: 31 | F181: 盒 | G181: 12.36 | H181: 383.16 | I181: 得力、齐心、广博
A182: 178 | B182: ▲ | C182: 装订铆管 | D182: 透明尼龙，适用装订机3880，100支/盒，Ø5.2*500mm | E182: 17 | F182: 盒 | G182: 73.05 | H182: 1241.85 | I182: 得力、晨光、齐心
A183: 179 | B183: ▲ | C183: 装订机原装钻刀 | D183: 适用装订机3880，打孔直径6mm，钻孔深度50mm | E183: 1 | F183: 个 | G183: 45.10 | H183: 45.10 | I183: 得力、晨光、齐心
A184: 180 | C184: 档案袋 | D184: 340*240*40mm，采用250g牛皮纸制作，绳扣50个/包，防霉防潮 | E184: 475 | F184: 包 | G184: 28.09 | H184: 13342.75 | I184: 任意品牌
A185: 181 | C185: 磁钉 | D185: 30mm，30只装/盒/筒 | E185: 7 | F185: 筒 | G185: 11.16 | H185: 78.12 | I185: 任意品牌
A186: 182 | C186: 键盘 | D186: 台式或笔记本电脑通用 | E186: 168 | F186: 个 | G186: 55.80 | H186: 9374.40 | I186: 任意品牌
A187: 183 | C187: 鼠标垫 | D187: 佳积布面鼠标垫/25*20cm | E187: 218 | F187: 块 | G187: 5.58 | H187: 1216.44 | I187: 得力、晨光、齐心
A188: 184 | C188: 裁纸机 | D188: 升级板面板和刀片加长20mm | E188: 8 | F188: 台 | G188: 83.15 | H188: 665.20 | I188: 得力、晨光、齐心
A189: 185 | C189: 电话线 | D189: 二芯全铜，5米 | E189: 34 | F189: 条 | G189: 8.37 | H189: 284.58 | I189: 任意品牌
A190: 186 | C190: 移动光驱 | D190: 外置DVD光驱笔记本台式机通用移动USB电脑CD刻录机外接光驱盒 | E190: 7 | F190: 个 | G190: 33.83 | H190: 236.81 | I190: 任意品牌
A191: 187 | C191: 电池 | D191: 23A 12V | E191: 315 | F191: 个 | G191: 2.82 | H191: 888.30 | I191: 任意品牌
A192: 188 | C192: hdmi线 | D192: 2米 | E192: 58 | F192: 条 | G192: 8.31 | H192: 481.98 | I192: 任意品牌
A193: 189 | C193: 固态硬盘 | D193: sata3接口，256G | E193: 24 | F193: 个 | G193: 134.15 | H193: 3219.60 | I193: 任意品牌
A194: 190 | C194: 圆形磁粒 | D194: 红色装，50粒，30mm | E194: 11 | F194: 筒 | G194: 12.32 | H194: 135.52 | I194: 任意品牌
A195: 191 | C195: 圆形磁粒 | D195: 黄色装，50粒，30mm | E195: 4 | F195: 筒 | G195: 12.24 | H195: 48.96 | I195: 任意品牌
A196: 192 | C196: 圆形磁粒 | D196: 绿色装，50粒，30mm | E196: 4 | F196: 筒 | G196: 12.36 | H196: 49.44 | I196: 任意品牌
A197: 193 | C197: 书写板 | D197: 灰色不透明，带夹笔功能 A4 | E197: 118 | F197: 个 | G197: 9.02 | H197: 1064.36 | I197: 任意品牌
A198: 194 | C198: 502胶水 | D198: 20g | E198: 223 | F198: 支 | G198: 3.35 | H198: =+G198*E198 -> 747.05 | I198: 任意品牌
A199: 195 | C199: 高清线 | D199: 1米，2.0版 4K，60Hz，锌合金款 | E199: 2 | F199: 条 | G199: 36.41 | H199: 72.82 | I199: 任意品牌
A200: 196 | C200: 不干胶打印纸 | D200: A4，BC-01 | E200: 13 | F200: 包 | G200: 25.12 | H200: 326.56 | I200: 任意品牌
... 282 more rows

Sheet 清单封面 (hidden)
F1: 编号：XYB[2017]0013(S1)
A3: 力合双清产学研建设项目（一期）二区1号楼活动中心（装修工程）
A5: 工 程 量 清 单
B18: 招 标 人： | F18: 工程造价咨询人：
C19: (单位盖章) | G19: (单位资质专用章)
B22: 法定代表人 或其授权人： | F22: 法定代表人 或其授权人：
C23: (签字或盖章) | G23: (签字或盖章)
B26: 编 制 人： | F26: 复 核 人：
C27: (造价人员签字盖专用章) | G27: (造价工程师签字盖专用章)
B31: 编 制 时 间： | C31: 2017-05-15 | F31: 复 核 时 间： | G31: =C31 -> 2017-05-15

Sheet 清单汇总表 (hidden)
A1: 工程项目汇总表
A3: 工程名称：力合双清产学研建设项目（一期）二区1号楼活动中心（装修工程）
A4: 序号 | B4: 单位工程名称 | C4: 工程造价(元) | D4: 其中 | F4: 人工费总额(元) | G4: 建筑面积(㎡) | H4: 钢筋（t） | I4: 单方造价(元/㎡) | J4: 单方钢筋含量（kg/㎡） | K4: 单方砼含量（m3/㎡）
D5: 工程造价 (不含单列费) (元) | E5: 安全文明施工单列费(元)
A6: 一 | B6: 力合双清产学研建设项目（一期）二区1号楼活动中心--装修工程 | J6: =H6/G6 ->  | K6: =#REF!/G6 -> 
A7: 1 | B7: 土建装饰工程 | K7: =#REF!/G7 -> 
A8: 2 | B8: 安装装饰工程
A9: 3 | B9: 空调装饰工程
A10: 3 | B10: 总包服务费 | K10: =#REF!/G10 -> 
A11: 4 | B11: 预留金
B12: 合 计： | J12: =H12/G12 ->  | K12: =#REF!/G12 -> 
C14: 232,660.68
C15: 770,396.98
C17: =SUM(C12:C16) -> 1,003,057.66

Sheet 清单说明 (hidden)
A1: 编 制 说 明
A3: （工程名称：力合双清产学研建设项目（一期）二区1号楼活动中心）
A4: 一、 | B4: 编制依据
A5: 1、 | B5: 根据深圳市方佳建筑设计有限公司设计的《力合双清产学研建设项目（一期）二区1号楼活动中心》图纸进行编制。
A6: 2、 | B6: 执行2013年《广东省建设工程计价通则》、2013年《广东省建筑装饰工程工程量清单计价指引》。
A7: 3、 | B7: 采用清单计价方式，执行2016年5月份《东莞建设网通知公告》公布的东建价[2016]3号《关于建筑业营改增后计价依据调整的补充通知》，执行《广东省住房和城乡建设厅关于营业税改增值税后调整广东省建设工程计价依据》（粤建市函[2016]1113号）。
A8: 二、 | B8: 本预算包括的内容：（详见工程量清单）
A9: 1、 | B9: 力合双清产学研建设项目（一期）二区1号楼活动中心图纸工程。
A10: 三、 | B10: 本预算不包括的内容：（详见工程量清单）
A11: 1、 | B11: 力合双清产学研建设项目（一期）二区1号楼活动中心图纸以外部分以及移动家具，专业公司定制宣传内容，山水装饰画，窗帘，活动屏风等。
A12: 四、 | B12: 其他说明：
A13: 1、 | B13: 本工程黄洞石规格按600*600*20mm，未注明石膏板厚度按9.5mm，石材厚度按20mm，PVC卷材地面按3mm计算；
A14: 2、 | B14: 本工程地面找平按甲方要求做40厚水泥砂浆找平层，楼梯做20厚水泥砂浆找平层；
A15: 3、 | B15: 墙面、天棚刷漆按刮腻子3遍，乳胶漆底漆2遍，面漆2遍；
A16: 4、 | B16: 墙面灰镜厚度按6mm、白色烤漆玻璃厚度按6mm；
A17: 5、 | B17: 本工程不另外考虑防水；
A18: 6、 | B18: 一层创新部门、文印室、资料室做法按100宽不锈钢踢脚，墙面白色乳胶漆；
A19: 7、 | B19: 天面埃特板厚度按4mm；
A20: 8、 | B20: 二层财务部资料室无墙面、柜做法，故本预算不包含；
A21: 9、 | B21: 天面石膏板按甲方要求用15厚环保型硅钙复合天花石膏板；
A22: 10、 | B22: 本工程按甲方要求用阻燃等级A级的木夹板；
A23: 11、 | B23: 其他部分详见清单。

Sheet 安装清单说明 (hidden)
A1: 清单编制说明
A2: (专业：安装工程)
A3: 一、清单主要编制依据：
A4: 1、根据深圳市方佳建筑设计有限公司设计的《力合双清产学研建设项目（一期）二区1号楼活动中心》2017年01月的二次装修图及要求进行编制；
A5: 2、执行2013年《广东省建设工程计价通则》。
A6: 二、清单主要包含内容：力合双清产学研建设项目（一期）二区1号楼活动中心项目的以下各专业；
A7: 1、配电照明工程
A8: 2、给排水工程
A9: 3、空调工程
A10: 三、其它说明：
A11: 1、根据甲方要求，弱电智能化工程与消防工程不在本次清单范围内；
A12: 2、配电工程从AWS5配电箱计起（含AWS5配电箱），应急照明接至原有配电箱；
A13: 3、给水工程从卫生间大样原有的水表组处计起（不含水表组）；
A14: 4、排水工程计至室外第一个检查井（不含检查井，含卫生间洁具）；
A15: 5、空调工程室外主机型号根据设计回复修改为制冷量90KW的两台，45KW一台，68KW一台。
A16: 6、根据图纸说明，在工位家具上的强弱电插座及线槽为工位家具自带，不计入本次清单范围；
A17: 7、具体内容及范围详见清单。
